bitfinex/quotes_ETHUSD_20250529
["timestamp","ask_amount","ask_price","bid_price","bid_amount"]
[1748490583051,0.7701,2753.0,2752.7,8.0]
[1748490583288,4.843,2752.9,2752.7,8.0]
[1748490583796,0.7701,2753.0,2752.7,3.63274619]
[1748490584091,1.026,2752.8,2752.7,3.63274619]
[1748490584295,1.026,2752.8,2752.6,11.63287533]
[1748490586091,1.026,2752.8,2752.7,11.63279689]
[1748490586315,1.026,2752.8,2752.7,8.0]
[1748490586517,1.026,2752.8,2752.6,11.63292886]
[1748490587018,1.026,2752.8,2752.7,8.0]
[1748490587220,1.026,2752.8,2752.7,11.63279689]
[1748490587715,0.7753,2753.2,2752.8,8.0]
[1748490587921,4.842,2753.1,2752.8,8.0]
[1748490588119,4.842,2753.1,2752.7,3.63274059]
[1748490588319,4.11685903,2753.3,2752.9,0.7546]
[1748490588320,0.4848,2753.3,2752.9,0.7546]
[1748490588617,1.026,2753.0,2752.9,11.63245103]
[1748490589519,0.8123,2753.6,2753.2,8.0]
[1748490589708,1.026,2753.3,2753.2,8.0]
[1748490590083,0.8123,2753.6,2753.2,3.63213714]
[1748490590283,1.026,2753.5,2752.8,11.63254007]
[1748490590616,1.026,2753.5,2752.5,7.99902301]
[1748490590617,1.026,2753.5,2753.4,11.63187332]
[1748490590914,0.7756,2753.8,2753.4,11.63187332]
[1748490591097,1.026,2753.5,2753.4,11.63187332]
[1748490593789,1.026,2753.5,2753.4,8.0]
[1748490595743,0.7756,2753.8,2753.5,3.63167244]
[1748490595899,3.814,2753.6,2753.5,8.0]
[1748490596306,0.00079763,2753.9,2753.6,8.0]
[1748490596509,0.00079763,2753.9,2753.2,0.7794]
[1748490596510,4.84,2753.8,2753.2,0.7794]
[1748490596710,4.84,2753.8,2753.4,8.0]
[1748490596912,4.84,2753.8,2753.4,3.63184282]
[1748490597109,8.47134772,2753.8,2753.3,11.63194655]
[1748490597313,4.84,2753.8,2753.3,11.63194655]
[1748490597636,4.84,2753.8,2753.3,8.0]
[1748490597935,4.84,2753.8,2753.5,8.0]
[1748490598238,4.84,2753.8,2753.4,3.63185564]
[1748490598239,5.85479062,2753.8,2753.3,11.63198714]
[1748490598610,5.85479062,2753.8,2753.4,3.6318609]
[1748490598817,5.85479062,2753.8,2753.0,8.7567]
[1748490598818,5.85479062,2753.8,2753.3,3.63196324]
[1748490599114,9.48613653,2753.8,2753.3,3.63193286]
[1748490599304,5.85479062,2753.8,2753.3,3.63193286]
[1748490599506,5.85479062,2753.8,2753.5,8.0]
[1748490599703,9.4861399,2753.8,2753.4,8.0]
[1748490600056,5.85479062,2753.8,2753.4,8.0]
[1748490601028,9.4861444,2753.8,2753.3,11.6320016]
[1748490601203,5.85479062,2753.8,2753.3,11.6320016]
[1748490601610,9.48619215,2753.8,2753.3,8.0]
[1748490601806,5.85479062,2753.8,2753.3,3.63191513]
[1748490602010,5.85479062,2753.8,2753.3,3.63191667]
[1748490602212,5.85479062,2753.8,2753.5,8.0]
[1748490602427,2.04079062,2753.8,2753.5,8.0]
[1748490602740,3.813,2753.7,2753.5,8.0]
[1748490602948,7.44456096,2753.7,2753.2,11.63208184]
[1748490603128,3.813,2753.7,2753.3,3.63199596]
[1748490603345,0.8029,2753.6,2753.1,8.0]
[1748490603531,0.8029,2753.4,2752.9,3.63244524]
[1748490603713,3.812,2753.3,2752.9,3.63244524]
[1748490603915,3.812,2753.3,2753.0,8.0]
[1748490604441,7.44406169,2753.3,2752.9,8.0]
[1748490604740,7.44406169,2753.3,2752.4,8.0]
[1748490604741,0.7937,2753.2,2752.4,8.0]
[1748490604913,4.42587342,2753.2,2752.6,3.63285314]
[1748490605112,4.42587768,2753.2,2752.6,3.63283921]
[1748490605440,4.42587768,2753.2,2752.4,3.6331692]
[1748490605441,4.40131024,2752.9,2752.4,3.6331692]
[1748490605641,4.838,2752.8,2752.3,8.0]
[1748490605846,4.838,2752.8,2752.3,3.6333107]
[1748490606345,4.838,2752.8,2752.5,8.0]
[1748490609048,4.838,2752.8,2752.5,11.63297757]
[1748490609446,3.63145375,2753.8,2753.0,3.63230936]
[1748490609752,0.8247,2753.5,2753.0,3.63230936]
[1748490609928,3.812,2753.4,2753.0,3.63230936]
[1748490610425,3.63213714,2753.2,2752.6,8.0]
[1748490610625,0.7656,2753.0,2752.6,3.63288463]
[1748490610827,1.026,2752.9,2752.2,0.7858]
[1748490611026,3.812,2752.8,2752.5,3.63294778]
[1748490611528,3.812,2752.8,2752.5,11.63294778]
[1748490612050,3.812,2752.8,2752.6,11.63290782]
[1748490612653,3.812,2752.8,2752.5,11.63299729]
[1748490613151,3.812,2752.8,2751.9,0.7788]
[1748490613329,4.38726683,2752.7,2752.1,3.63347207]
[1748490613650,4.38726683,2752.7,2752.2,11.63344341]
[1748490613845,0.7544,2752.7,2752.2,11.63344341]
[1748490614431,0.7544,2752.7,2752.3,3.63332088]
[1748490614855,0.7544,2752.7,2752.2,8.0]
[1748490615021,0.7544,2752.7,2752.3,3.63325615]
[1748490615220,0.7544,2752.7,2752.5,8.0]
[1748490615421,1.023,2752.6,2751.9,0.7788]
[1748490615619,1.023,2752.6,2752.5,3.63306085]
[1748490616058,1.023,2752.6,2752.5,11.63306085]
[1748490617755,0.7849,2752.9,2752.6,11.6327986]
[1748490617949,0.7849,2752.9,2752.8,11.63266492]
[1748490618323,4.834,2752.9,2752.8,11.63266492]
[1748490618519,1.023,2752.9,2752.8,11.63266492]
[1748490618725,0.8113,2753.5,2753.2,3.63208309]
[1748490619048,0.8113,2753.8,2753.3,3.63200523]
[1748490619358,4.834,2753.7,2753.5,3.63167275]
[1748490619665,1.023,2753.6,2753.5,3.63174142]
[1748490619861,1.023,2753.6,2753.5,11.63174142]
[1748490621555,0.00079763,2753.9,2753.7,3.63147764]
[1748490621756,1.023,2753.8,2753.7,11.63147764]
[1748490621968,3.81079763,2753.9,2753.8,11.63134577]
[1748490622154,0.00079763,2753.9,2753.8,11.63134577]
[1748490622336,4.83379763,2753.9,2753.8,11.63134577]
[1748490622535,1.02379763,2753.9,2753.8,11.63134577]
[1748490623326,0.00079763,2753.9,2753.8,11.63134577]
[1748490623525,0.00079763,2753.9,2753.8,13.15762761]
[1748490623526,1.02379763,2753.9,2753.8,13.15762761]
[1748490626199,0.00079763,2753.9,2753.8,13.97932761]
[1748490627364,0.00079763,2753.9,2753.8,12.45304577]
[1748490631972,0.00079763,2753.9,2753.8,11.63134577]
[1748490648130,0.00079763,2753.9,2753.8,12.45084577]
[1748490658708,0.00079763,2753.9,2753.8,11.63134577]
[1748490658920,0.00079763,2753.9,2753.8,15.43334577]
[1748490659141,0.00079763,2753.9,2753.8,17.41800737]
[1748490659730,0.00079763,2753.9,2753.8,13.61600737]
[1748490659929,0.00079763,2753.9,2753.8,11.63134577]
[1748490664965,0.00079763,2753.9,2753.8,12.41684577]
[1748490666982,0.00079763,2753.9,2753.8,12.96684577]
[1748490667546,0.00079763,2753.9,2753.8,16.21684577]
[1748490667759,0.00079763,2753.9,2753.8,12.41684577]
[1748490667968,0.00079763,2753.9,2753.7,3.6314444]
[1748490668151,0.00079763,2753.9,2753.5,0.7568]
[1748490668350,0.00079763,2753.9,2753.7,8.0]
[1748490668540,4.38450589,2753.8,2753.2,3.63211289]
[1748490669000,0.7531,2753.8,2752.6,0.7552]
[1748490669145,0.7531,2753.8,2752.5,2.38461892]
[1748490669146,3.63166712,2753.6,2753.0,3.63238967]
[1748490669478,3.63166712,2753.6,2752.4,0.7506]
[1748490669479,4.45714867,2753.4,2752.4,0.7506]
[1748490669637,1.023,2753.3,2753.0,3.63233289]
[1748490669836,0.8252,2753.4,2753.3,3.63200523]
[1748490670075,1.023,2753.4,2753.3,11.63200523]
[1748490671942,1.023,2753.4,2753.3,8.0]
[1748490672146,1.023,2753.4,2753.3,11.63200523]
[1748490673392,1.023,2753.4,2753.3,13.23774666]
[1748490674288,1.017,2753.8,2753.7,3.63147764]
[1748490674601,1.017,2753.8,2753.7,11.63147764]
[1748490675297,0.00079763,2753.9,2753.8,3.63134577]
[1748490675503,0.00079763,2753.9,2753.8,13.52078868]
[1748490676761,0.00079763,2753.9,2753.8,14.89718868]
[1748490679899,0.00079763,2753.9,2753.8,18.69518868]
[1748490680069,0.00079763,2753.9,2753.8,18.14518868]
[1748490681435,0.00079763,2753.9,2753.8,14.34718868]
[1748490682116,0.00079763,2753.9,2753.8,18.14418868]
[1748490682833,0.00079763,2753.9,2753.8,18.69418868]
[1748490692301,0.00079763,2753.9,2753.8,26.98151527]
[1748490692516,0.00079763,2753.9,2753.8,29.87356382]
[1748490692811,0.05,2754.9,2754.8,11.63002758]
[1748490693236,0.05,2754.9,2754.8,11.99930904]
[1748490697416,0.03556601,2754.9,2754.8,11.99930904]
[1748490699027,0.86366601,2754.9,2754.8,3.63002758]
[1748490699544,0.86366601,2754.9,2754.8,11.63002758]
[1748490700856,0.86366601,2754.9,2754.8,8.0]
[1748490701026,0.86366601,2754.9,2754.8,11.63002758]
[1748490701231,0.86366601,2754.9,2754.8,11.6422885]
[1748490703323,0.86366601,2754.9,2754.8,12.89089515]
[1748490705239,0.86366601,2754.9,2754.8,11.6422885]
[1748490705240,0.03556601,2754.9,2754.8,11.6422885]
[1748490721783,0.03556601,2754.9,2754.8,8.01226092]
[1748490721987,0.03556601,2754.9,2754.8,11.6422885]
[1748490722529,0.03556601,2754.9,2754.8,12.4165885]
[1748490722683,0.03556601,2754.9,2754.8,12.9665885]
[1748490722892,0.03556601,2754.9,2754.8,15.00516211]
[1748490724903,0.03556601,2754.9,2754.8,31.61353511]
[1748490725310,0.03556601,2754.9,2754.8,29.73068511]
[1748490727223,1.063,2755.9,2754.8,29.73068511]
[1748490727224,0.05,2755.9,2755.8,3.62871035]
[1748490727530,0.05,2755.9,2755.8,12.17871035]
[1748490727728,0.05,2755.9,2755.8,23.63257582]
[1748490728426,0.03632704,2755.9,2755.8,23.63257582]
[1748490728805,1.8228,2757.0,2755.8,23.63257582]
[1748490728806,0.05,2758.9,2755.9,4.3103]
[1748490728991,0.29261708,2759.9,2759.4,3.62389011]
[1748490728992,0.273,2759.9,2759.4,3.62389011]
[1748490729202,0.273,2759.9,2759.8,17.59609197]
[1748490729509,0.05,2760.9,2760.8,3.62213851]
[1748490729716,0.05,2760.9,2760.8,11.62213851]
[1748490729717,0.20722471,2760.9,2760.8,11.62213851]
[1748490729954,0.20722471,2760.9,2760.8,11.859]
[1748490730258,0.20722471,2760.9,2760.8,15.48213851]
[1748490730552,0.05,2760.9,2760.8,15.48213851]
[1748490731047,0.05,2760.9,2760.8,11.62213851]
[1748490731418,0.05,2760.9,2760.8,8.0]
[1748490731622,0.04495689,2760.9,2760.8,8.0]
[1748490731833,0.86795689,2760.9,2760.8,8.0]
[1748490732055,1.05605258,2760.9,2760.8,8.0]
[1748490732433,2.10905258,2760.9,2760.8,8.0]
[1748490733162,2.10905258,2760.9,2759.6,0.514]
[1748490733311,2.10905258,2760.9,2760.2,3.62289837]
[1748490733505,1.053,2760.8,2760.2,3.62283522]
[1748490733705,0.21090526,2760.7,2759.7,3.857]
[1748490734043,0.21090526,2760.7,2759.2,0.7768]
[1748490734044,1.053,2760.6,2759.9,3.62319623]
[1748490734204,1.053,2760.6,2759.6,3.62371358]
[1748490734648,1.053,2760.6,2760.1,3.62305713]
[1748490734944,1.053,2760.6,2760.2,3.62290565]
[1748490735240,1.04323869,2760.6,2760.3,8.0]
[1748490736336,1.04323869,2760.6,2760.1,3.62304382]
[1748490736758,1.04323869,2760.6,2760.2,8.0]
[1748490737329,1.04323869,2760.6,2759.9,8.0]
[1748490737560,1.04323869,2760.6,2760.3,8.0]
[1748490737759,1.04323869,2760.6,2760.3,3.62276787]
[1748490738148,1.04323869,2760.6,2760.2,8.0]
[1748490738548,1.04323869,2760.6,2760.2,3.62289244]
[1748490739053,1.04323869,2760.6,2759.6,3.85]
[1748490739231,1.04323869,2760.6,2759.7,8.0]
[1748490739437,1.04323869,2760.6,2759.6,3.85]
[1748490739438,1.04323869,2760.6,2760.3,8.0]
[1748490739880,1.04323869,2760.6,2759.7,8.0]
[1748490739881,1.04323869,2760.6,2759.9,11.62331799]
[1748490740172,1.04323869,2760.6,2759.7,3.6235252]
[1748490740173,1.04323869,2760.6,2760.4,8.0]
[1748490740739,1.04323869,2760.6,2760.4,11.62265918]
[1748490740931,1.04323869,2760.6,2760.3,3.62277448]
[1748490741354,1.04323869,2760.6,2760.5,3.62253214]
[1748490741962,1.04323869,2760.6,2760.4,3.62262525]
[1748490742471,1.04323869,2760.6,2760.4,8.0]
[1748490742769,1.04323869,2760.6,2760.3,8.0]
[1748490743135,1.04323869,2760.6,2760.3,11.62275254]
[1748490743540,1.04323869,2760.6,2760.4,3.62266338]
[1748490743754,1.04323869,2760.6,2760.5,3.62253214]
[1748490744069,1.052,2760.6,2760.4,3.62264639]
[1748490744272,1.052,2760.6,2760.4,3.62266338]
[1748490744640,0.86795689,2760.9,2760.8,3.62213851]
[1748490744840,0.86795689,2760.9,2760.2,8.0]
[1748490744841,1.91995689,2760.9,2760.6,3.62231575]
[1748490745047,1.91995689,2760.9,2760.6,3.62231123]
[1748490745259,2.49585258,2760.9,2760.5,8.0]
[1748490745458,2.49585258,2760.9,2760.1,8.0]
[1748490745694,2.49585258,2760.9,2760.5,8.0]
[1748490745888,2.49585258,2760.9,2760.4,8.0]
[1748490746182,2.49585258,2760.9,2760.5,3.62245961]
[1748490746385,0.24958526,2760.8,2760.4,3.62262226]
[1748490746988,0.24958526,2760.8,2760.3,3.62278568]
[1748490747188,0.24958526,2760.8,2760.4,3.62264088]
[1748490748469,0.24958526,2760.8,2760.3,3.62272176]
[1748490748851,0.24958526,2760.8,2760.4,3.62263552]
[1748490749353,0.27454378,2760.7,2760.4,8.0]
[1748490749554,0.27454378,2760.7,2758.3,4.67731653]
[1748490749555,3.83,2760.6,2758.7,3.62481209]
[1748490749890,3.83,2760.6,2757.3,0.2]
[1748490749891,0.7878,2760.4,2759.3,3.62408502]
[1748490750048,3.62309548,2760.1,2758.8,4.6237]
[1748490750358,3.62309548,2760.1,2759.1,3.6242701]
[1748490750359,0.7878,2759.8,2759.1,3.6242701]
[1748490750549,4.41127831,2759.8,2759.0,3.6244552]
[1748490750880,3.62372291,2759.6,2759.0,3.62444545]
[1748490751386,0.44112783,2759.7,2758.5,8.0]
[1748490751556,3.62385197,2759.5,2758.9,3.62455468]
[1748490751747,3.62375788,2759.6,2759.0,3.62449737]
[1748490751950,3.62375788,2759.6,2759.1,8.0]
[1748490752481,0.7878,2759.8,2759.1,8.0]
[1748490752655,0.97178,2759.8,2759.0,8.0]
[1748490752857,0.97178,2759.8,2759.5,3.62379094]
[1748490752858,1.052,2759.7,2759.5,3.62379094]
[1748490753856,1.052,2759.7,2759.4,11.62389157]
[1748490754163,1.052,2759.7,2759.5,3.62382253]
[1748490754349,1.052,2759.7,2759.5,3.62384489]
[1748490755193,1.052,2759.7,2759.2,11.62421452]
[1748490755378,1.5983276,2759.7,2759.4,8.0]
[1748490756463,1.052,2759.7,2759.2,3.62419864]
[1748490756670,1.052,2759.7,2759.4,8.0]
[1748490756886,1.052,2759.7,2759.5,0.53608321]
[1748490757201,1.052,2759.7,2759.6,0.53608321]
[1748490757415,1.052,2759.7,2759.3,3.62410756]
[1748490757558,1.052,2759.7,2759.4,0.2011125]
[1748490757753,1.01904762,2759.7,2759.5,8.0]
[1748490757998,1.01904762,2759.7,2759.6,0.53650923]
[1748490758180,1.01904762,2759.7,2759.6,0.53650531]
[1748490758399,0.8144,2760.2,2759.6,0.53650266]
[1748490758702,1.052,2760.1,2759.8,3.62345097]
[1748490758866,1.052,2760.1,2760.0,3.6231884]
[1748490759195,1.052,2760.1,2760.0,4.16191489]
[1748490759407,1.052,2760.1,2760.0,4.16202326]
[1748490759611,1.052,2760.1,2760.0,4.16202428]
[1748490759901,1.052,2760.1,2760.0,0.53896293]
[1748490760099,1.052,2760.1,2760.0,0.53917335]
[1748490760302,1.052,2760.1,2759.9,8.0]
[1748490760457,1.052,2760.1,2760.0,0.53907674]
[1748490760662,1.052,2760.1,2760.0,0.53906875]
[1748490760968,1.052,2760.1,2760.0,0.53925021]
[1748490761168,1.23864,2760.1,2760.0,0.53956183]
[1748490761392,1.23864,2760.1,2760.0,0.53959686]
[1748490761598,2.03864,2760.1,2760.0,0.33722659]
[1748490761799,2.03864,2760.1,2760.0,0.20237683]
[1748490762100,2.03864,2760.1,2759.7,8.0]
[1748490762399,2.03864,2760.1,2759.8,0.20251192]
[1748490762558,2.03864,2760.1,2758.8,4.17473004]
[1748490762559,4.27091154,2760.0,2759.9,0.20251192]
[1748490762765,3.62332657,2759.9,2759.3,11.62402311]
[1748490763014,0.64760596,2760.0,2759.5,8.0]
[1748490763015,4.27085613,2760.0,2759.5,8.0]
[1748490763183,4.27085613,2760.0,2759.6,0.20270704]
[1748490763382,1.01484961,2759.9,2759.7,0.20270704]
[1748490763560,1.01484961,2759.9,2759.8,0.20270704]
[1748490763764,1.01484961,2759.9,2759.5,8.0]
[1748490764800,1.01484961,2759.9,2759.6,0.20278586]
[1748490765001,1.01484961,2759.9,2759.7,0.20278586]
[1748490765168,1.01484961,2759.9,2759.8,0.20278586]
[1748490765565,1.01484961,2759.9,2759.8,0.20280485]
[1748490765789,1.01484961,2759.9,2759.8,0.20280519]
[1748490765992,1.01484961,2759.9,2759.8,0.20288372]
[1748490766199,1.01484961,2759.9,2759.5,8.0]
[1748490766607,1.01484961,2759.9,2759.6,0.20285598]
[1748490766806,1.01484961,2759.9,2759.7,0.20285598]
[1748490766989,1.01484961,2759.9,2759.8,0.20285598]
[1748490767186,1.01484961,2759.9,2759.5,8.0]
[1748490767383,1.01484961,2759.9,2759.6,8.0]
[1748490767613,1.01484961,2759.9,2759.5,8.0]
[1748490767907,1.01484961,2759.9,2759.5,3.62382146]
[1748490768108,1.01484961,2759.9,2759.6,0.20287387]
[1748490768289,1.01484961,2759.9,2759.5,3.62382146]
[1748490768493,1.01484961,2759.9,2759.6,0.20290392]
[1748490768699,1.01484961,2759.9,2759.7,0.20290392]
[1748490769005,1.01484961,2759.9,2759.8,0.20290392]
[1748490769408,1.01484961,2759.9,2759.4,11.62392002]
[1748490769618,1.01484961,2759.9,2759.5,3.8268219]
[1748490769911,1.01484961,2759.9,2759.5,3.62381682]
[1748490770216,1.01484961,2759.9,2759.6,0.20298608]
[1748490770537,1.01484961,2759.9,2759.7,0.20298608]
[1748490770538,0.52856562,2759.8,2759.7,0.20298608]
[1748490771191,0.52856562,2759.8,2759.7,0.20315899]
[1748490771192,4.15204615,2759.8,2759.7,0.20315899]
[1748490771395,0.7921,2759.6,2758.9,0.00664285]
[1748490771578,0.7921,2759.6,2759.0,11.62450163]
[1748490771785,4.41591105,2759.6,2759.0,11.62450163]
[1748490772319,0.7921,2759.6,2759.2,8.0]
[1748490772525,0.7921,2759.6,2759.0,8.0]
[1748490772526,3.62384588,2759.5,2759.0,8.0]
[1748490772699,3.62384588,2759.5,2758.9,0.00664285]
[1748490772700,5.47487832,2759.6,2758.9,3.63117087]
[1748490772894,5.47487832,2759.6,2759.0,8.20324603]
[1748490772895,3.62391585,2759.5,2759.0,8.20324603]
[1748490773105,3.62391585,2759.5,2759.1,0.20324603]
[1748490773308,4.89615771,2759.5,2759.2,0.20319233]
[1748490773507,4.89615771,2759.5,2759.3,0.20319233]
[1748490773508,1.27224186,2759.5,2759.3,0.20319233]
[1748490773706,4.89611691,2759.5,2759.4,0.20318046]
[1748490773919,4.89611691,2759.5,2759.4,0.20317541]
[1748490774218,4.89611691,2759.5,2759.1,8.0]
[1748490774437,4.89611691,2759.5,2759.2,0.20317958]
[1748490774438,1.27224186,2759.5,2759.2,0.20317958]
[1748490774643,1.27224186,2759.5,2758.9,0.00664285]
[1748490774644,4.89609419,2759.5,2759.3,0.20317104]
[1748490774843,1.27224186,2759.5,2759.4,0.20317104]
[1748490775426,1.27224186,2759.5,2758.9,0.00664285]
[1748490775427,4.8962047,2759.5,2758.9,3.63122064]
[1748490775627,3.62398853,2759.4,2759.0,0.20311904]
[1748490775941,1.043,2759.3,2759.1,0.20312783]
[1748490776141,1.043,2759.3,2758.9,3.63125966]
[1748490776142,1.043,2759.3,2758.9,0.00664285]
[1748490776311,1.043,2759.3,2758.9,3.63125737]
[1748490776503,1.043,2759.3,2759.0,8.0]
[1748490777109,1.043,2759.3,2758.9,0.00664285]
[1748490777543,1.043,2759.3,2758.9,8.00664285]
[1748490778043,1.043,2759.3,2758.9,11.63127026]
[1748490778345,1.043,2759.3,2758.9,0.00664285]
[1748490778644,1.043,2759.3,2758.9,3.63118476]
[1748490778844,1.043,2759.3,2759.0,8.0]
[1748490779714,1.043,2759.3,2759.1,0.20310319]
[1748490779939,1.043,2759.3,2759.2,0.20310319]
[1748490780329,1.043,2759.3,2759.2,0.20307816]
[1748490780648,1.043,2759.3,2759.0,8.0]
[1748490780946,1.043,2759.3,2759.1,0.20308676]
[1748490781116,1.043,2759.3,2759.2,0.2030848]
[1748490781707,1.043,2759.3,2759.0,8.0]
[1748490781911,4.66711249,2759.3,2759.1,0.20308814]
[1748490782111,1.043,2759.3,2759.2,0.20308889]
[1748490782545,1.043,2759.3,2759.2,0.20307065]
[1748490782546,4.66710848,2759.3,2759.2,0.20307065]
[1748490782752,4.66710848,2759.3,2758.9,8.00664285]
[1748490782955,3.62424333,2759.2,2758.9,0.00664285]
[1748490783163,1.043,2759.3,2759.0,0.20307203]
[1748490783357,1.043,2759.3,2758.9,0.00664285]
[1748490783358,5.51553658,2759.3,2759.1,0.20307206]
[1748490783558,5.51553658,2759.3,2758.9,0.00664285]
[1748490783559,3.62437477,2759.1,2758.9,0.00664285]
[1748490783855,5.51553658,2759.3,2759.0,0.20305727]
[1748490783856,3.62428504,2759.2,2759.0,0.20305727]
[1748490784056,1.8913997,2759.3,2759.1,0.20303932]
[1748490784258,1.8913997,2759.3,2758.9,0.00664285]
[1748490784259,3.809,2759.3,2759.2,0.20303983]
[1748490784410,3.809,2759.3,2759.1,3.62437026]
[1748490784411,1.043,2759.2,2759.1,3.62437026]
[1748490784614,1.043,2759.2,2759.1,3.8273929]
[1748490784814,1.043,2759.2,2759.1,3.82738298]
[1748490785041,1.043,2759.2,2759.1,3.82738313]
[1748490785426,1.043,2759.2,2759.1,3.82736258]
[1748490785650,1.043,2759.2,2759.1,3.82736025]
[1748490785850,1.043,2759.2,2759.1,3.82736011]
[1748490786052,1.043,2759.2,2759.1,3.62437026]
[1748490786456,3.62349687,2759.8,2759.1,3.62437026]
[1748490786457,0.8013,2759.9,2759.3,3.62402414]
[1748490786767,0.8013,2759.9,2758.7,3.807]
[1748490786768,3.62371358,2759.6,2758.6,0.8057]
[1748490786963,3.62371358,2759.6,2758.3,0.8057]
[1748490786964,0.8013,2759.5,2758.3,0.8057]
[1748490787280,3.62371358,2759.6,2758.1,0.05]
[1748490787281,3.62500759,2758.7,2758.1,0.05]
[1748490787568,3.62500759,2758.7,2758.2,0.20303308]
[1748490787569,4.66806342,2758.6,2758.2,0.20303308]
[1748490787859,4.66806342,2758.6,2758.3,0.20303308]
[1748490787860,4.66811967,2758.6,2758.3,0.20303308]
[1748490788047,4.66811967,2758.6,2758.4,0.20288929]
[1748490788048,3.62523701,2758.5,2758.4,0.20288929]
[1748490788233,5.59612875,2758.6,2758.4,0.20288596]
[1748490788456,5.59612875,2758.6,2758.1,0.05]
[1748490788457,5.59612875,2758.6,2758.1,8.05]
[1748490788751,1.97104197,2758.6,2758.1,0.05]
[1748490788952,5.59612464,2758.6,2758.1,8.05]
[1748490789115,5.59615473,2758.6,2758.2,0.20291064]
[1748490789515,9.40415454,2758.6,2758.2,0.20291064]
[1748490789756,4.38742145,2758.3,2758.2,0.20291064]
[1748490791156,4.38742145,2758.3,2758.2,0.40597838]
[1748490791341,4.38742145,2758.3,2758.2,0.20291064]
[1748490791659,5.28742145,2758.3,2758.2,0.20291064]
[1748490792032,6.33042145,2758.3,2758.2,0.20291064]
[1748490792237,10.14242145,2758.3,2758.2,0.20291064]
[1748490792822,12.3956342,2758.3,2758.2,0.20291064]
[1748490797857,12.3876342,2758.3,2758.2,0.20291064]
[1748490799560,12.3846342,2758.3,2758.2,0.20291064]
[1748490800062,12.3666342,2758.3,2758.2,0.20291064]
[1748490800827,0.9,2758.3,2758.2,0.20291064]
[1748490801031,1.925,2758.3,2758.2,0.20291064]
[1748490801242,1.025,2758.3,2758.2,0.20291064]
[1748490801448,1.025,2758.3,2758.2,3.82846353]
[1748490801677,1.025,2758.3,2758.2,0.20291064]
[1748490802368,1.025,2758.3,2758.2,11.82846353]
[1748490802533,1.025,2758.3,2758.2,8.20291064]
[1748490802936,1.025,2758.3,2758.2,11.82846353]
[1748490803139,1.025,2758.3,2758.2,8.20291064]
[1748490803447,7.824,2758.4,2758.3,11.62542145]
[1748490803648,8.849,2758.4,2758.3,12.38432145]
[1748490805484,8.849,2758.4,2758.3,8.7589]
[1748490807276,8.849,2758.4,2758.3,8.0]
[1748490807483,12.47429002,2758.4,2758.3,8.0]
[1748490807645,3.62542145,2758.3,2758.2,0.20291064]
[1748490807851,7.42342145,2758.3,2758.2,0.20291064]
[1748490809657,7.37342145,2758.3,2758.2,0.20291064]
[1748490809985,16.27732257,2758.4,2758.2,0.20291064]
[1748490810284,12.652,2758.4,2758.2,0.20291064]
[1748490810454,3.62542145,2758.3,2758.2,0.20291064]
[1748490812407,16.27730038,2758.4,2758.2,0.20291064]
[1748490812609,8.849,2758.4,2758.2,0.20291064]
[1748490812905,3.799,2758.3,2758.2,0.20291064]
[1748490813785,3.798,2758.3,2758.2,0.20291064]
[1748490814673,7.42342145,2758.3,2758.2,0.20291064]
[1748490814873,9.05066359,2758.3,2758.2,0.20291064]
[1748490816276,7.42342145,2758.3,2758.2,0.20291064]
[1748490819677,8.21532145,2758.3,2758.2,0.20291064]
[1748490836151,8.20732145,2758.3,2758.2,0.20291064]
[1748490837435,16.03432145,2758.3,2758.2,0.20291064]
[1748490839022,16.58432145,2758.3,2758.2,0.20291064]
[1748490839261,18.70778366,2758.3,2758.2,0.20291064]
[1748490839459,14.36778366,2758.3,2758.2,0.20291064]
[1748490839758,19.17078366,2758.3,2758.2,0.20291064]
[1748490841063,18.37888366,2758.3,2758.2,0.20291064]
[1748490843462,18.37888366,2758.3,2758.2,0.15291064]
[1748490844449,14.58888366,2758.3,2758.2,0.15291064]
[1748490844657,18.37888366,2758.3,2758.2,0.15291064]
[1748490847194,19.17298366,2758.3,2758.2,0.15291064]
[1748490847354,19.72298366,2758.3,2758.2,0.15291064]
[1748490847799,19.72298366,2758.3,2758.1,0.05]
[1748490847800,4.17555289,2758.2,2758.1,0.05]
[1748490847956,4.17555289,2758.2,2757.6,0.141]
[1748490847957,3.62621024,2757.7,2757.6,0.141]
[1748490848479,8.42921024,2757.7,2757.6,0.141]
[1748490851094,4.63921024,2757.7,2757.6,0.141]
[1748490851296,0.5,2757.7,2757.6,0.141]
[1748490851454,5.303,2757.7,2757.6,0.141]
[1748490851655,8.92921024,2757.7,2757.6,0.141]
[1748490851860,0.5,2757.7,2757.6,0.141]
[1748490852069,1.513,2757.7,2757.6,0.141]
[1748490852269,5.13921024,2757.7,2757.6,0.141]
[1748490852761,4.63921024,2757.7,2757.6,0.141]
[1748490853856,1.013,2757.7,2757.6,0.141]
[1748490854057,8.42921024,2757.7,2757.6,0.141]
[1748490854388,1.012,2757.7,2757.6,0.141]
[1748490857768,3.62597155,2757.9,2757.6,0.141]
[1748490857969,4.801,2757.8,2757.6,0.141]
[1748490858934,3.62559736,2758.2,2757.7,0.81]
[1748490859221,4.801,2758.1,2757.7,0.81]
[1748490859378,8.4267551,2758.1,2757.7,0.81]
[1748490860472,0.8029,2759.2,2757.8,3.62607875]
[1748490860822,3.62510448,2758.6,2758.1,8.0]
[1748490861050,3.6251628,2758.5,2758.1,8.0]
[1748490861246,7.41407557,2758.6,2758.1,8.0]
[1748490862254,3.62518347,2758.5,2758.1,8.0]
[1748490862403,3.62518347,2758.5,2758.0,0.7687]
[1748490863801,3.62504277,2758.6,2758.2,8.8188]
[1748490864002,1.012,2758.5,2758.2,8.8188]
[1748490864247,1.012,2758.5,2758.2,0.8188]
[1748490864431,4.63717019,2758.5,2758.1,8.0]
[1748490866248,4.63717019,2758.5,2758.0,0.8188]
[1748490866543,3.62543259,2758.3,2758.0,0.8188]
[1748490866702,3.789,2758.2,2758.0,0.8188]
[1748490866901,7.41462049,2758.2,2758.0,0.8188]